bitfinex/quotes_SOLUSD_20250425
["timestamp","ask_amount","ask_price","bid_price","bid_amount"]
[1745617609904,1.50433388,150.88,150.77,18.64964886]
[1745617610736,1.50433388,150.88,150.76,16.32]
[1745617611407,20.0,150.85,150.76,16.32]
[1745617611612,1.50433388,150.84,150.71,34.96964886]
[1745617620631,1.50433388,150.84,150.71,18.64964886]
[1745617620831,0.14216157,150.83,150.66,19.88]
[1745617621031,0.14216157,150.83,150.63,207.09]
[1745617621032,28.3374,150.8,150.63,0.03]
[1745617621354,0.14216157,150.78,150.64,18.82181043]
[1745617621846,1.50433388,150.77,150.64,18.82181043]
[1745617622550,1.50433388,150.77,150.64,18.67964886]
[1745617623052,1.50433388,150.77,150.64,0.03]
[1745617626150,1.50433388,150.77,150.64,19.91]
[1745617626343,38.79181043,150.76,150.64,0.03]
[1745617626555,0.14216157,150.74,150.64,0.03]
[1745617626761,1.50433388,150.73,150.64,0.03]
[1745617626933,0.14216157,150.67,150.58,5.40427301]
[1745617627263,0.14216157,150.65,150.58,5.40427301]
[1745617627565,1.50433388,150.64,150.58,5.40427301]
[1745617628557,8.12533388,150.64,150.58,5.40427301]
[1745617628761,1.50433388,150.64,150.58,5.40427301]
[1745617630159,1.8236,150.61,150.58,5.40427301]
[1745617630345,20.14216157,150.59,150.58,5.40427301]
[1745617631170,20.14216157,150.59,150.58,3.43267301]
[1745617631354,18.64964886,150.58,150.5,0.1]
[1745617631559,0.14216157,150.56,150.5,0.1]
[1745617632862,1.50433388,150.55,150.43,4.2987013]
[1745617633069,0.14216157,150.54,150.43,4.2987013]
[1745617633379,1.50433388,150.53,150.43,4.2987013]
[1745617633870,1.50433388,150.53,150.43,24.1787013]
[1745617634174,1.50433388,150.53,150.4,52.66962117]
[1745617634362,1.50433388,150.53,150.41,18.64964886]
[1745617634968,1.50433388,150.53,150.41,38.52964886]
[1745617635161,20.0,150.52,150.38,33.89889082]
[1745617635351,0.14216157,150.5,150.38,33.46360375]
[1745617635553,1.50433388,150.49,150.36,33.44164339]
[1745617635764,1.50433388,150.5,150.38,33.46360375]
[1745617635961,1.50433388,150.5,150.4,33.36251555]
[1745617636174,0.14216157,150.49,150.35,5.51020408]
[1745617636366,1.50433388,150.48,150.35,4.51020408]
[1745617636563,0.14216157,150.47,150.35,4.51020408]
[1745617636747,1.50433388,150.46,150.35,4.51020408]
[1745617637183,1.50433388,150.46,150.35,24.39020408]
[1745617637372,1.50433388,150.46,150.36,18.64964886]
[1745617637553,1.50433388,150.48,150.36,38.52964886]
[1745617637754,1.50433388,150.48,150.36,38.55964886]
[1745617638887,0.14216157,150.47,150.36,38.55964886]
[1745617639261,1.50433388,150.46,150.36,0.03]
[1745617641181,1.50433388,150.47,150.36,38.55964886]
[1745617641379,1.50433388,150.46,150.36,38.55964886]
[1745617641582,1.64649545,150.48,150.36,38.55964886]
[1745617642058,1.50433388,150.48,150.36,38.55964886]
[1745617642577,1.50433388,150.48,150.36,38.41431774]
[1745617643260,1.50433388,150.48,150.36,121.21431774]
[1745617644156,1.50433388,150.48,150.36,102.68]
[1745617644563,1.50433388,150.48,150.37,18.64964886]
[1745617646556,1.50433388,150.48,150.39,18.64964886]
[1745617647152,1.50433388,150.48,150.39,38.52964886]
[1745617647567,20.0,150.39,150.21,82.8]
[1745617647767,1.64649545,150.38,150.21,84.13062725]
[1745617647971,15.65737811,150.38,150.24,0.14216157]
[1745617648186,6.2075,150.4,150.26,0.14216157]
[1745617648488,6.2075,150.4,150.27,16.78]
[1745617648700,1.50433388,150.39,150.28,16.78]
[1745617648878,6.2075,150.4,150.29,16.78]
[1745617648879,7.71183388,150.4,150.29,16.78]
[1745617649205,1.50433388,150.39,150.29,16.78]
[1745617649500,1.50433388,150.39,150.3,16.78]
[1745617649699,6.2075,150.4,150.31,18.64964886]
[1745617649996,1.50433388,150.42,150.31,18.64964886]
[1745617650193,0.14216157,150.41,150.27,207.4]
[1745617650371,0.14216157,150.39,150.27,207.4]
[1745617650572,1.50433388,150.38,150.28,16.78]
[1745617650795,0.14216157,150.39,150.27,207.4]
[1745617650997,28.24516667,150.42,150.28,16.78]
[1745617651297,1.50433388,150.43,150.31,18.64964886]
[1745617651483,21.57956648,150.45,150.31,18.64964886]
[1745617651484,1.50433388,150.44,150.31,18.64964886]
[1745617651793,21.57956648,150.45,150.33,18.64964886]
[1745617652319,21.57956648,150.45,150.35,18.64964886]
[1745617653195,15.37206648,150.45,150.35,18.64964886]
[1745617657004,15.37206648,150.45,150.36,16.78]
[1745617657812,15.37206648,150.45,150.37,18.64964886]
[1745617658304,1.50433388,150.49,150.37,18.64964886]
[1745617659189,1.50433388,150.49,150.36,16.78]
[1745617659190,1.50433388,150.49,150.35,20.02216157]
[1745617659398,1.50433388,150.49,150.38,16.78]
[1745617659596,1.50433388,150.49,150.35,20.02216157]
[1745617659835,0.14216157,150.48,150.36,16.78]
[1745617660114,1.50433388,150.47,150.36,16.78]
[1745617660683,6.5997,150.5,150.38,20.02216157]
[1745617660880,6.5997,150.5,150.4,18.64964886]
[1745617661080,6.5997,150.5,150.42,18.64964886]
[1745617661285,6.5997,150.5,150.43,16.78]
[1745617662713,6.5997,150.5,150.4,38.52964886]
[1745617662920,0.14216157,150.4,150.25,23.1413298]
[1745617663090,0.14216157,150.38,150.2,20.91]
[1745617663289,0.14216157,150.38,150.22,19.88]
[1745617663290,1.50433388,150.37,150.22,19.88]
[1745617663595,1.50433388,150.37,150.24,19.88]
[1745617663801,13.67859897,150.38,150.25,37.36]
[1745617664003,13.67859897,150.38,150.3,18.64964886]
[1745617664203,1.50433388,150.42,150.31,17.48]
[1745617664400,0.14216157,150.41,150.31,17.48]
[1745617664627,0.14216157,150.39,150.31,17.48]
[1745617664916,1.50433388,150.4,150.31,17.48]
[1745617665420,1.50433388,150.41,150.31,17.48]
[1745617665827,1.50433388,150.43,150.32,18.64964886]
[1745617666002,1.50433388,150.43,150.33,17.48]
[1745617669108,9.79272499,150.43,150.33,17.48]
[1745617669427,0.14216157,150.42,150.33,17.48]
[1745617669625,1.50433388,150.41,150.33,17.48]
[1745617669806,0.14216157,150.4,150.33,17.48]
[1745617670008,38.79181043,150.38,150.24,207.44]
[1745617670318,1.50433388,150.37,150.28,17.48]
[1745617670711,1.50433388,150.39,150.28,17.48]
[1745617670913,20.0,150.23,150.1,5.14471243]
[1745617671097,1.50433388,150.22,150.1,5.14471243]
[1745617671302,1.50433388,150.25,150.15,18.14]
[1745617671525,7.79653388,150.26,150.15,18.14]
[1745617671733,1.50433388,150.25,150.15,18.14]
[1745617671931,6.2922,150.26,150.16,18.64964886]
[1745617672116,1.50433388,150.28,150.16,18.64964886]
[1745617672321,18.79181043,150.28,150.15,18.14]
[1745617672542,21.50433388,150.27,150.15,18.14]
[1745617673227,1.50433388,150.27,150.15,18.14]
[1745617673418,1.50433388,150.27,150.12,8.27073987]
[1745617673419,20.29614431,150.28,150.16,18.14]
[1745617673731,20.0,150.25,150.17,18.14]
[1745617673927,1.50433388,150.24,150.14,0.071]
[1745617674305,0.14216157,150.23,150.15,18.14]
[1745617674498,1.50433388,150.23,150.15,18.14]
[1745617674703,1.50433388,150.23,150.14,0.071]
[1745617674704,0.14216157,150.21,150.14,0.071]
[1745617674927,1.50433388,150.22,150.15,18.14]
[1745617675138,0.14216157,150.24,150.15,18.14]
[1745617675139,1.50433388,150.23,150.15,18.14]
[1745617676134,1.50433388,150.23,150.14,0.071]
[1745617676308,20.0,150.18,150.12,8.19963987]
[1745617676631,1.50433388,150.17,150.12,8.19963987]
[1745617676931,1.50433388,150.21,150.12,8.19963987]
[1745617677113,20.0,150.27,150.12,8.19963987]
[1745617677114,1.50433388,150.26,150.12,8.19963987]
[1745617677306,20.0,150.29,150.12,8.19963987]
[1745617677307,1.50433388,150.28,150.12,8.19963987]
[1745617678035,1.50433388,150.28,150.13,20.14]
[1745617678429,1.50433388,150.28,150.14,20.14]
[1745617678737,1.50433388,150.28,150.15,20.14]
[1745617678929,1.50433388,150.28,150.12,8.19963987]
[1745617679109,1.50433388,150.28,150.13,20.14]
[1745617679310,20.0,150.25,150.14,20.14]
[1745617679521,1.50433388,150.24,150.14,20.14]
[1745617680237,1.50433388,150.24,150.15,20.14]
[1745617680732,1.50433388,150.24,150.12,8.19963987]
[1745617680933,1.50433388,150.24,150.13,20.14]
[1745617681235,1.50433388,150.24,150.12,8.19963987]
[1745617681437,1.50433388,150.24,150.13,20.14]
[1745617681639,1.50433388,150.26,150.13,20.14]
[1745617682435,21.50433388,150.26,150.14,20.14]
[1745617683538,20.0,150.24,150.12,8.19963987]
[1745617683725,1.50433388,150.23,150.15,20.14]
[1745617684347,1.50433388,150.25,150.15,20.14]
[1745617684810,1.50433388,150.25,150.12,8.19963987]
[1745617685014,1.50433388,150.27,150.12,215.93963987]
[1745617685214,1.50433388,150.27,150.13,20.14]
[1745617685409,1.50433388,150.27,150.12,215.93963987]
[1745617685715,1.50433388,150.27,150.14,20.14]
[1745617686247,1.50433388,150.27,150.12,8.19963987]
[1745617686455,20.0,150.13,150.12,1.53303987]
[1745617686665,20.0,150.13,150.02,5.35621521]
[1745617686666,1.50433388,150.13,150.02,5.35621521]
[1745617686951,1.50433388,150.15,150.02,5.35621521]
[1745617687247,20.0,150.18,150.04,18.64964886]
[1745617687248,1.50433388,150.17,150.04,18.64964886]
[1745617688138,1.50433388,150.17,150.05,0.14216157]
[1745617688449,1.50433388,150.2,150.04,17.82181043]
[1745617688947,1.50433388,150.2,150.04,45.36661575]
[1745617689146,1.50433388,150.23,150.06,20.88]
[1745617689345,1.50433388,150.23,150.07,6.5314]
[1745617689743,1.50433388,150.23,150.07,7.5314]
[1745617689923,1.50433388,150.23,150.08,19.88]
[1745617690528,1.50433388,150.23,150.09,18.64964886]
[1745617690843,1.50433388,150.23,150.1,20.16]
[1745617692346,34.0552938,150.19,150.13,34.0552938]
[1745617692533,34.0552938,150.19,150.12,34.0552938]
[1745617692952,34.0552938,150.19,150.13,34.0552938]
[1745617693324,34.0552938,150.19,150.12,34.0552938]
[1745617695656,34.0552938,150.18,150.12,34.0552938]
[1745617696362,34.0552938,150.18,150.13,20.16]
[1745617698156,34.0552938,150.17,150.13,20.16]
[1745617698959,34.0552938,150.16,150.13,20.16]
[1745617700457,34.0552938,150.17,150.13,20.16]
[1745617701139,34.0552938,150.16,150.13,20.16]
[1745617701343,34.0552938,150.18,150.13,20.16]
[1745617701771,1.64649545,150.23,150.13,20.16]
[1745617702061,34.0552938,150.18,150.13,20.16]
[1745617702365,34.0552938,150.2,150.15,34.0552938]
[1745617702546,34.0552938,150.2,150.14,34.0552938]
[1745617702863,34.0552938,150.19,150.14,34.0552938]
[1745617703037,34.0552938,150.19,150.13,54.2152938]
[1745617703238,34.0552938,150.18,150.13,20.16]
[1745617703565,34.0552938,150.17,150.13,20.16]
[1745617704662,20.0,150.11,150.0,5.224851]
[1745617704847,1.50433388,150.1,150.01,54.2152938]
[1745617705042,34.0552938,150.11,150.03,34.0552938]
[1745617705269,34.0552938,150.13,150.05,34.0552938]
[1745617705566,34.0552938,150.14,150.05,34.0552938]
[1745617705949,1.50433388,150.19,150.12,34.0552938]
[1745617706264,34.0552938,150.19,150.13,20.16]
[1745617707882,1.50433388,150.23,150.13,20.16]
[1745617708041,34.0552938,150.2,150.13,20.16]
[1745617709455,34.0552938,150.19,150.13,20.16]
[1745617710372,34.0552938,150.2,150.13,20.16]
[1745617711471,34.0552938,150.19,150.13,20.16]
[1745617712778,34.0552938,150.18,150.13,20.16]
[1745617713272,34.0552938,150.18,150.12,207.8]
[1745617713474,34.0552938,150.13,150.12,207.8]
[1745617713779,21.302353,150.14,150.12,207.8]
[1745617714073,21.302353,150.13,150.12,207.8]
[1745617715662,1.64649545,150.19,150.12,207.8]
[1745617715984,34.08408503,150.13,150.12,207.8]
[1745617716888,34.08408503,150.14,150.12,207.8]
[1745617717183,34.08408503,150.17,150.12,207.8]
[1745617717687,34.08408503,150.16,150.12,207.8]
[1745617717869,34.08408503,150.15,150.12,207.8]
[1745617718061,34.08408503,150.17,150.12,207.8]
[1745617721593,34.08408503,150.16,150.12,207.8]
[1745617722095,34.08408503,150.15,150.12,207.8]
[1745617722590,34.08408503,150.16,150.12,207.8]
[1745617722973,34.08408503,150.17,150.12,207.8]
[1745617724097,1.64649545,150.22,150.12,207.8]
[1745617724477,34.08408503,150.17,150.12,207.8]
[1745617724789,34.08408503,150.13,150.02,24.91621521]
[1745617724980,34.08408503,150.11,150.03,34.08408503]
[1745617725582,1.50433388,150.15,150.04,18.64964886]
[1745617725794,34.08408503,150.13,150.06,34.08408503]
[1745617726181,34.08408503,150.13,150.05,34.08408503]
[1745617726695,34.08408503,150.13,150.06,34.08408503]
[1745617726875,34.08408503,150.14,150.06,34.08408503]
[1745617728598,34.08408503,150.14,150.04,18.64964886]
[1745617728908,34.08408503,150.14,150.06,34.08408503]
[1745617729707,34.08408503,150.14,150.07,19.58]
[1745617731996,1.50433388,150.18,150.07,19.58]
[1745617732201,34.08408503,150.15,150.07,19.58]
[1745617732402,34.08408503,150.15,150.07,53.66408503]
[1745617734198,1.64649545,150.2,150.07,19.58]
[1745617734400,34.08408503,150.14,150.07,19.58]
[1745617735109,1.64649545,150.2,150.07,19.58]
[1745617735407,34.08408503,150.14,150.07,19.58]
[1745617735700,21.29778272,150.14,150.07,40.87778272]
[1745617735907,21.29778272,150.15,150.07,40.87778272]
[1745617736205,21.29778272,150.14,150.07,19.58]
[1745617736990,1.50433388,150.2,150.08,39.94743158]
[1745617737184,21.29778272,150.17,150.1,21.29778272]
[1745617737809,21.29778272,150.17,150.09,21.29778272]
[1745617738312,21.29778272,150.16,150.09,21.29778272]
[1745617738908,21.29778272,150.16,150.1,21.29778272]
[1745617739104,21.29778272,150.17,150.1,21.29778272]
[1745617740214,1.70949545,150.23,150.1,21.29778272]
[1745617740405,21.29778272,150.16,150.1,21.29778272]
[1745617741211,21.29778272,150.18,150.11,21.29778272]
[1745617741411,21.29778272,150.18,150.12,21.29778272]
[1745617741621,21.29778272,150.19,150.12,21.29778272]
[1745617741796,1.56733388,150.23,150.12,21.29778272]
[1745617741994,21.29778272,150.19,150.13,21.29778272]
[1745617742195,21.29778272,150.19,150.14,18.9]
[1745617743010,21.29778272,150.18,150.14,18.9]
[1745617743718,21.29778272,150.17,150.14,18.9]
[1745617744122,21.29778272,150.19,150.14,18.9]
[1745617745509,0.063,150.23,150.15,21.29778272]
[1745617745707,21.29778272,150.2,150.15,21.29778272]
[1745617746109,21.29778272,150.2,150.14,40.19778272]
[1745617749301,21.29778272,150.2,150.15,21.29778272]
[1745617750014,21.29778272,150.2,150.14,40.19778272]
[1745617750514,21.29778272,150.19,150.14,18.9]
[1745617751911,0.063,150.23,150.14,18.9]
[1745617751912,21.29778272,150.18,150.14,18.9]
[1745617752430,21.29778272,150.17,150.14,18.9]
[1745617753926,21.29778272,150.16,150.14,18.9]
[1745617754823,21.29778272,150.16,150.12,207.76]
[1745617755022,21.29778272,150.17,150.13,18.24]
[1745617756642,1.56733388,150.23,150.13,18.24]
[1745617757147,21.29778272,150.17,150.13,18.24]
[1745617757644,13.62322539,150.17,150.13,18.24]
[1745617759341,13.62322539,150.18,150.13,31.86322539]
[1745617764355,1.56733388,150.23,150.13,31.86322539]
[1745617764526,13.62322539,150.19,150.15,13.62322539]
[1745617765040,13.62322539,150.19,150.16,18.24]
[1745617766352,0.063,150.23,150.18,13.62322539]
[1745617766546,13.62322539,150.22,150.18,13.62322539]
[1745617766752,13.68622539,150.23,150.18,13.62322539]
[1745617767121,13.68622539,150.23,150.19,13.62322539]
[1745617767536,0.063,150.23,150.2,13.62322539]
[1745617767742,0.063,150.23,150.19,13.62322539]
[1745617768343,13.68622539,150.23,150.19,13.62322539]
[1745617769556,13.68622539,150.23,150.18,13.62322539]
[1745617770054,13.62322539,150.22,150.18,13.62322539]
[1745617770751,13.62322539,150.22,150.17,32.27287425]
[1745617773063,13.62322539,150.21,150.17,18.64964886]
[1745617773248,13.62322539,150.22,150.17,32.27287425]
[1745617775473,13.62322539,150.21,150.17,18.64964886]
[1745617776047,13.68622539,150.23,150.18,13.62322539]
[1745617779174,0.063,150.23,150.18,13.62322539]
[1745617779467,13.68622539,150.23,150.18,13.62322539]
[1745617781543,13.68622539,150.23,150.19,17.58]
[1745617783767,13.62322539,150.22,150.19,17.58]
[1745617786671,13.62322539,150.2,150.19,17.58]
[1745617790765,0.063,150.23,150.19,17.58]
[1745617790970,13.62322539,150.21,150.19,17.58]
[1745617793468,0.063,150.23,150.19,17.58]
[1745617793667,13.62322539,150.22,150.19,17.58]
[1745617794291,13.62322539,150.21,150.19,17.58]
[1745617794486,13.62322539,150.22,150.19,17.58]
[1745617795296,0.063,150.23,150.14,226.34964886]
[1745617795461,0.063,150.23,150.14,207.7]
[1745617795785,1.56733388,150.23,150.14,207.7]
[1745617796081,13.62322539,150.17,150.14,207.7]
[1745617796281,1.56733388,150.23,150.14,207.7]
[1745617796463,13.62322539,150.17,150.14,207.7]
[1745617797068,1.56733388,150.23,150.14,207.7]
[1745617797473,13.62322539,150.17,150.14,207.7]
[1745617798987,1.56733388,150.23,150.14,207.7]
[1745617799181,13.62322539,150.18,150.14,207.7]
[1745617799887,1.56733388,150.23,150.14,207.7]
[1745617800178,13.62322539,150.18,150.14,207.7]
[1745617802865,13.62322539,150.17,150.14,207.7]
[1745617803700,13.62322539,150.18,150.14,207.7]
[1745617804289,6.418,150.21,150.14,207.7]
[1745617804290,13.62322539,150.15,150.14,207.7]
[1745617804473,13.62322539,150.15,150.09,16.94]
[1745617804794,13.62322539,150.11,150.09,16.94]
[1745617805377,13.62322539,150.13,150.09,16.94]
[1745617806090,1.50433388,150.19,150.09,16.94]
[1745617806397,13.62322539,150.12,150.09,16.94]
[1745617807098,1.50433388,150.15,150.09,16.94]
[1745617807500,13.62322539,150.12,150.09,16.94]
[1745617808093,13.62322539,150.1,150.09,16.94]
[1745617809192,13.62322539,150.11,150.09,16.94]
[1745617810298,15.12755927,150.1,150.09,16.94]
[1745617810671,15.12755927,150.1,150.05,207.76]
[1745617810672,69.62046083,150.1,150.05,207.76]
[1745617810894,13.62322539,150.06,150.05,224.72]
[1745617812202,13.62322539,150.06,150.02,5.35621521]
[1745617812509,13.62322539,150.04,150.03,16.96]
[1745617812691,1.50433388,150.07,150.03,16.96]
[1745617813005,13.62322539,150.06,150.03,16.96]
[1745617813178,13.62322539,150.05,150.03,16.96]
[1745617813380,15.12755927,150.04,150.03,16.96]
[1745617813705,13.62322539,150.04,150.03,16.96]
[1745617815419,1.50433388,150.07,150.03,16.96]
[1745617815804,13.62322539,150.04,150.03,16.96]
[1745617816009,13.62322539,150.05,150.03,16.96]
[1745617816521,1.64649545,150.09,150.03,16.96]
[1745617816522,13.62322539,150.04,150.03,16.96]
[1745617817631,1.50433388,150.07,150.03,16.96]
[1745617817798,13.62322539,150.04,150.03,16.96]
[1745617818822,13.62322539,150.05,150.03,16.96]
[1745617820016,13.62322539,150.04,150.03,16.96]
[1745617821106,13.62322539,150.05,150.03,16.96]
[1745617824128,13.62322539,150.04,150.03,16.96]
[1745617824808,1.50433388,150.07,150.03,16.96]
[1745617825009,13.62322539,150.04,150.03,16.96]
[1745617828299,13.62322539,150.04,150.03,15.96]
[1745617832545,13.62322539,150.04,150.03,14.96]
[1745617841816,13.62322539,150.04,150.03,13.46]
[1745617844332,13.62322539,150.06,150.03,13.46]
[1745617844549,1.50433388,150.1,150.03,27.08322539]
[1745617844727,13.62322539,150.07,150.03,27.08322539]
[1745617846127,13.62322539,150.07,150.03,13.46]
[1745617846746,13.62322539,150.06,150.03,13.46]
[1745617847724,1.50433388,150.1,150.03,13.46]
[1745617847924,13.62322539,150.06,150.03,13.46]
[1745617848731,1.50433388,150.1,150.03,27.08322539]
[1745617848932,13.62322539,150.05,150.03,13.46]
[1745617849139,13.62322539,150.06,150.03,13.46]
[1745617849446,54.49290156,150.08,150.02,5.35621521]
[1745617849618,13.62322539,150.03,150.02,5.35621521]
[1745617857455,1.50433388,150.07,150.02,5.35621521]
[1745617857750,13.62322539,150.03,150.02,5.35621521]
[1745617859832,13.48150575,150.03,150.02,5.35621521]
[1745617860439,13.62322539,150.04,150.02,5.35621521]
[1745617861056,13.62322539,150.05,150.02,5.35621521]
[1745617861257,13.62322539,150.06,150.02,5.35621521]
[1745617863262,13.62322539,150.05,150.02,5.35621521]
[1745617863958,13.62322539,150.04,150.02,5.35621521]
[1745617864159,13.62322539,150.03,150.02,5.35621521]
[1745617866565,18.4777001,150.03,150.02,5.35621521]
[1745617867366,4.85447471,150.03,150.02,5.35621521]
[1745617867545,18.4777001,150.03,150.02,5.35621521]
[1745617869668,4.85447471,150.03,150.02,5.35621521]
[1745617869836,18.4777001,150.03,150.02,5.35621521]
[1745617870256,4.85447471,150.03,150.02,5.35621521]
[1745617871167,4.85447471,150.04,150.02,5.35621521]
[1745617872066,4.85447471,150.06,150.02,5.35621521]
[1745617872363,18.4777001,150.06,150.02,5.35621521]
[1745617873166,4.85447471,150.05,150.02,5.35621521]
[1745617874066,4.85447471,150.04,150.02,5.35621521]
[1745617875242,4.85447471,150.05,150.02,5.35621521]
[1745617875442,4.85447471,150.05,150.02,18.9794406]
[1745617875872,4.85447471,150.06,150.02,18.9794406]
[1745617879583,18.4777001,150.06,150.02,5.35621521]
[1745617880344,13.62322539,150.06,150.02,5.35621521]
[1745617880847,13.62322539,150.07,150.03,18.64964886]
[1745617881977,0.063,150.11,150.04,13.62322539]
[1745617882178,13.62322539,150.09,150.04,13.62322539]
[1745617882774,13.62322539,150.08,150.03,32.27287425]
[1745617884252,13.62322539,150.09,150.05,18.64964886]
[1745617884458,13.62322539,150.09,150.06,15.3]
[1745617887653,0.063,150.11,150.06,15.3]
[1745617887857,13.62322539,150.09,150.06,15.3]
[1745617888059,13.62322539,150.1,150.06,15.3]
[1745617888673,13.62322539,150.08,150.06,15.3]
[1745617888978,13.62322539,150.09,150.06,15.3]
[1745617891157,0.063,150.11,150.06,15.3]
[1745617891389,13.62322539,150.1,150.06,15.3]
[1745617891755,13.62322539,150.1,150.07,18.64964886]
[1745617894978,0.063,150.11,150.07,18.64964886]
[1745617895271,13.68622539,150.11,150.07,18.64964886]
[1745617897656,0.063,150.11,150.07,32.27287425]
[1745617898276,0.063,150.11,150.08,207.88]
[1745617900285,13.68622539,150.11,150.08,207.88]
[1745617901988,0.063,150.11,150.09,18.64964886]
[1745617905477,0.063,150.11,150.08,207.88]
[1745617905478,13.62322539,150.1,150.08,207.88]
[1745617905678,13.62322539,150.09,150.08,207.88]
[1745617906291,0.063,150.11,150.08,207.88]
[1745617906478,13.62322539,150.09,150.08,207.88]
[1745617908597,13.62322539,150.09,150.08,222.62]
[1745617910298,18.45224263,150.09,150.08,222.62]
[1745617913201,18.45224263,150.09,150.02,5.35621521]
[1745617913389,13.62322539,150.06,150.03,14.74]
[1745617913592,4.82901724,150.08,150.04,18.64964886]
[1745617913800,13.62322539,150.07,150.04,18.64964886]
[1745617914392,13.62322539,150.07,150.03,14.74]
[1745617915106,1.50433388,150.09,150.03,14.74]
[1745617915494,13.62322539,150.07,150.03,14.74]
[1745617917012,1.50433388,150.09,150.03,14.74]
[1745617917192,13.62322539,150.07,150.03,14.74]
[1745617917704,1.50433388,150.09,150.03,14.74]
[1745617917887,13.62322539,150.06,150.03,14.74]
[1745617918705,1.50433388,150.09,150.04,18.64964886]
[1745617919022,0.063,150.11,150.06,32.27287425]
[1745617919314,13.68622539,150.11,150.06,32.27287425]
[1745617919677,4.84141554,150.1,150.08,18.64964886]
[1745617919883,4.84141554,150.1,150.09,33.40964886]
[1745617920186,4.90441554,150.11,150.09,33.40964886]
[1745617920382,4.90441554,150.11,150.1,18.64964886]
[1745617920814,4.90441554,150.11,150.09,14.76]
[1745617921179,4.90441554,150.11,150.1,18.64964886]
[1745617922815,0.063,150.11,150.1,18.64964886]
[1745617923912,0.063,150.11,150.09,14.76]
[1745617924204,0.063,150.11,150.1,18.64964886]
[1745617924408,0.063,150.11,150.09,33.40964886]
[1745617924584,0.063,150.11,150.1,18.64964886]
[1745617939530,13.68622539,150.11,150.09,222.64]
[1745617939728,13.62322539,150.1,150.09,222.64]
[1745617940934,13.62322539,150.1,150.09,207.88]
[1745617941137,13.62322539,150.1,150.09,222.26]
[1745617943713,15.70322539,150.11,150.09,222.26]
[1745617944337,13.62322539,150.1,150.09,222.26]
[1745617945512,15.70322539,150.11,150.09,222.26]
[1745617946714,0.063,150.11,150.09,222.26]
[1745617947335,0.063,150.11,150.09,14.38]
[1745617947536,0.063,150.11,150.1,32.27287425]
[1745617951522,0.063,150.11,150.1,18.64964886]
[1745617952841,0.063,150.11,150.1,32.27287425]
[1745617953023,0.063,150.11,150.1,18.64964886]
[1745617953425,0.063,150.11,150.1,32.27287425]
[1745617954337,0.063,150.11,150.1,18.64964886]
[1745617966555,0.063,150.11,150.1,32.27287425]
[1745617967229,0.063,150.11,150.1,32.90964886]
[1745617967657,0.063,150.11,150.1,46.53287425]
[1745617968139,0.063,150.11,150.1,32.90964886]
[1745617969050,0.063,150.11,150.1,46.53287425]
[1745617981569,0.063,150.11,150.1,240.74964886]
[1745617981776,0.063,150.11,150.1,337.17287425]
[1745617985675,0.063,150.11,150.1,337.31503582]
[1745617988083,0.063,150.12,150.11,0.14216157]
[1745617988372,0.063,150.12,150.11,115.21503582]
[1745617990093,0.063,150.12,150.11,116.54652612]
[1745617990766,0.063,150.12,150.11,117.54652612]
[1745617991367,0.063,150.12,150.11,102.92330073]
[1745617991680,0.063,150.12,150.11,116.54652612]
[1745617991980,0.063,150.12,150.11,117.54652612]
[1745617992186,0.063,150.12,150.11,116.54652612]
[1745617993680,0.063,150.13,150.12,115.15203582]
[1745617996592,0.063,150.16,150.14,0.14216157]
[1745617996761,0.063,150.16,150.15,46.65503582]
[1745617997785,0.063,150.16,150.15,129.39203582]
[1745617998379,0.063,150.16,150.15,117.09990176]
[1745617998580,0.063,150.16,150.15,130.72312715]
[1745617999884,0.063,150.19,150.18,101.38664886]
[1745618000085,0.063,150.19,150.18,115.00987425]
[1745618000987,0.063,150.19,150.18,115.15203582]
[1745618001372,0.063,150.22,150.19,38.78181043]
[1745618001570,0.063,150.22,150.21,32.27287425]
[1745618001793,0.063,150.26,150.21,115.15203582]
[1745618001973,0.063,150.26,150.24,32.27287425]
[1745618003671,0.063,150.26,150.24,18.64964886]
[1745618003999,0.063,150.26,150.24,32.27287425]